[Event "FIDE WCCC U10 2018"]
[Site "Santiago de Compostela"]
[Date "2018.11.08"]
[Round "4"]
[White "Li, Shanglin"]
[Black "Vetokhin, Savva"]
[Result "0-1"]
[ECO "B23"]
[WhiteElo "1659"]
[BlackElo "1874"]
[Annotator "NA RC"]
[PlyCount "132"]
[EventDate "2018.11.04"]
[EventType "swiss"]
[EventCountry "ESP"]
[SourceTitle "playchess.com"]
[Source "ChessBase"]
[SourceQuality "1"]
[TimeControl "40/5400+30:1800+30"]

{[%evp 14,114,5,19,19,16,22,22,12,-1,18,21,32767,0,35,29,22,0,21,27,67,69,85,60,90,33,52,38,62,33,47,27,74,20,31,11,4,7,0,6,32767,0,13,10,16,10,32767,0,6,-8,20,22,19,23,19,-56,-55,-64,32767,32767,-52,32767,-64,32767,32767,32767,32767,-87,-79,32767,32767,32767,32767,32767,32767,32767,32767,32767,-22,32767,32767,-79,32767,-183,-163,-145,-188,-195,-200,-195,-227,-252,-231,-244,-211,-278,-267,-335,32767,-317,-362,-388,-427]} 1. e4 {[%emt 0:00:00]} c5 {[%emt 0:00:00]} 2. Ne2 {[%emt 0:00:12]} Nc6 {[%emt 0:00:26]} 3. Nbc3 {[%emt 0:00:08]} d6 {[%emt 0:00:41]} 4. g3 {[%emt 0:00:12]} g6 {[%emt 0:00:25]} 5. d4 {[%emt 0:01:44]} cxd4 {[%emt 0:00:45]} 6. Nxd4 {[%emt 0:00:02]} Bg7 {[%emt 0:00:09]} 7. Nde2 {[%emt 0:00:01]} Nf6 {[%emt 0:04:05]} 8. Bg2 {[%emt 0:01:10]} O-O {[%emt 0:01:32]} 9. O-O {[%emt 0:00:08]} Rb8 {[%emt 0:11:54]} 10. a4 {[%emt 0:11:45]} b6 {[%emt 0:04:27] B70: Sicilian Dragon: 6 g3 and 6 Be2 (without a later Be3)} (10... a6 11. h3 b5 12. axb5 axb5 13. Nd5 Nd7 14. Rb1 b4 15. Bg5 h6 16. Be3 e6 17. Ndf4 Nde5 18. b3 Ba6 19. Qd2 Kh7 20. Rfd1 Qc8 21. Nd4 Nxd4 22. Bxd4 {1-0 (55) Mchedlishvili,M (2603)-Demchenko,A (2660) Riadh 2017}) 11. h3 {[%emt 0:01:25]} Bb7 {[%emt 0:02:22] LiveBook: 12 Games} 12. Be3 {[%emt 0:03:43]} Rc8 {[%emt 0:08:25]} 13. Qc1 $146 {[%emt 0:02:56]} ({Predecessor:} 13. Nd5 Nd7 14. Rb1 e6 15. Ndc3 {½-½ (33) Czajkowski,A (2204)-Barreto Bastidas,J (2015) Ohrid 2017}) 13... Nb4 {[%emt 0:05:26]} 14. Qd2 {[%emt 0:06:37]} Nd7 {[%emt 0:12:33]} 15. Rac1 {[%emt 0:01:53]} a6 {[%emt 0:10:00]} 16. Bd4 {[%emt 0:02:02]} e5 {[%emt 0:10:24]} 17. Be3 {[%emt 0:00:25]} Nc5 {[%emt 0:00:03]} 18. Rfd1 {[%emt 0:01:12]} Rc6 {[%emt 0:01:00]} 19. b3 {[%emt 0:01:16]} ({Better is} 19. Nb5 $16) 19... Qe7 {[%emt 0:04:51]} 20. h4 {[%emt 0:01:59]} h5 {[%emt 0:00:52]} 21. Bg5 {[%emt 0:00:15]} Bf6 {[%emt 0:00:43]} 22. Bh6 {[%emt 0:01:56]} Rd8 {[%emt 0:03:00]} 23. Be3 {[%emt 0:00:58]} Rcc8 {[%emt 0:00:38]} 24. Qe1 {[%emt 0:01:31]} Bc6 {[%emt 0:01:19]} 25. Nd5 {[%emt 0:06:57]} Nxd5 {[%emt 0:00:22]} 26. exd5 {[%emt 0:00:08]} Bd7 {[%emt 0:00:50]} 27. Nc3 {[%emt 0:01:52]} a5 {[%emt 0:02:51]} 28. Ne4 {[%emt 0:03:14]} Nxe4 {[%emt 0:01:04]} 29. Bxe4 {[%emt 0:00:07]} Rb8 {[%emt 0:00:14]} 30. Bg2 {[%emt 0:02:00]} Rdc8 {[%emt 0:02:40]} 31. Qf1 {[%emt 0:04:09]} Bg7 {[%emt 0:01:54]} 32. Qd3 {[%emt 0:08:30]} Bf5 {[%emt 0:02:06]} 33. Qd2 {[%emt 0:00:18]} Qd7 {[%emt 0:01:21]} 34. Kh2 {[%emt 0:00:40]} (34. c4 $14) 34... b5 {[%emt 0:01:18]} 35. Qxa5 {[%emt 0:02:59]} bxa4 {[%emt 0:00:52]} 36. bxa4 {[%emt 0:01:58]} Bxc2 {[%emt 0:00:37]} 37. Rd2 {[%emt 0:04:42]} Qxa4 {[%emt 0:01:06]} 38. Qxa4 {[%emt 0:02:32]} Bxa4 {[%emt 0:00:04]} 39. Rxc8+ {[%emt 0:00:07]} Rxc8 {[%emt 0:00:03]} 40. Ra2 {[%emt 0:00:00]} Bd7 {[%emt 0:00:00]} 41. Ra6 {[%emt 0:00:12]} Bf8 42. Ra7 Bf5 {[%emt 0:01:36]} 43. Ra6 {[%emt 0:00:52]} f6 {[%emt 0:04:20]} 44. Ra7 {[%emt 0:00:33]} Re8 {[%emt 0:00:24]} 45. Bb6 {[%emt 0:02:12]} Be7 {[%emt 0:02:12]} ({Besser ist} 45... Bd3 $17) 46. Bc7 {[%emt 0:01:36]} Bd3 {[%emt 0:01:53]} 47. Ra3 {[%emt 0:00:29]} e4 {[%emt 0:01:34]} 48. Rb3 {[%emt 0:03:19]} (48. f3 $17 {was worth a try.}) 48... Rc8 {[%emt 0:02:34]} 49. Rb7 {[%emt 0:00:23]} f5 {[%emt 0:01:39]} 50. Bb6 {[%emt 0:01:25]} Kf8 {[%emt 0:01:03]} 51. Ra7 {[%emt 0:01:51]} Bc4 {[%emt 0:01:58]} 52. Be3 {[%emt 0:02:14]} Bxd5 {[%emt 0:02:12]} 53. Bf1 {[%emt 0:00:01]} Bc6 {[%emt 0:06:10]} 54. Ba6 {[%emt 0:00:27]} Ra8 {[%emt 0:00:39]} 55. Kg1 {[%emt 0:00:56]} Rxa7 {[%emt 0:00:08]} 56. Bxa7 {[%emt 0:00:01]} Kf7 {[%emt 0:00:10]} 57. Bc8 {[%emt 0:00:11]} d5 $19 {[%emt 0:00:11]} 58. Kf1 {[%emt 0:00:09]} Bf6 {[%emt 0:00:42]} 59. Ke2 {[%emt 0:00:08]} d4 {[%emt 0:00:10]} 60. Kd2 {[%emt 0:00:17]} Be5 {[%emt 0:00:56]} 61. Ba6 {[%emt 0:01:50]} Ke6 {[%emt 0:00:15]} 62. Bc4+ {[%emt 0:00:13]} Bd5 {[%emt 0:00:04]} 63. Bb5 {[%emt 0:00:10]} f4 {[%emt 0:00:28]} 64. Be8 {[%emt 0:00:35]} e3+ {[%emt 0:00:44]} 65. fxe3 {[%emt 0:00:09]} fxe3+ {[%emt 0:00:04]} 66. Ke2 {[%emt 0:00:23]} Bc4+ {[%emt 0:00:06]} 0-1

[Event "FIDE WCCC U10 2018"]
[Site "Santiago de Compostela"]
[Date "2018.11.08"]
[Round "4"]
[White "Li Yihao"]
[Black "Kolesov, Gordey"]
[Result "1-0"]
[ECO "C54"]
[WhiteElo "1601"]
[BlackElo "1823"]
[Annotator "NA"]
[PlyCount "75"]
[EventDate "2018.11.04"]
[EventType "swiss"]
[EventCountry "ESP"]
[SourceTitle "playchess.com"]
[Source "ChessBase"]
[SourceQuality "1"]
[TimeControl "40/5400+30:1800+30"]

{[%evp 18,67,-2,18,20,6,39,0,43,50,32767,124,82,21,25,36,113,21,62,43,35,0,-25,-21,16,15,81,32767,208,203,414,368,32767,371,344,397,508,568,543,584,564,32767,527,32767,625,32767,32767,32767,653,662,852,928]} 1. e4 {[%emt 0:00:19]} e5 {[%emt 0:00:00]} 2. Nf3 {[%emt 0:00:12]} Nc6 {[%emt 0:00:00]} 3. d4 exd4 {[%emt 0:00:00]} 4. Bc4 {[%emt 0:01:02]} Bc5 {[%emt 0:00:30]} 5. c3 {[%emt 0:00:34]} Nf6 {[%emt 0:00:11]} 6. e5 {[%emt 0:00:14]} d5 {[%emt 0:00:11]} 7. Be2 {[%emt 0:00:16] C54: Italienische Partie (Hauptvariante)} (7. Bb5 Ne4 8. cxd4 Bb6 9. Nc3 O-O 10. Be3 Bg4 11. h3 Bh5 12. Qc2 Bg6 13. Qb3 Ne7 14. O-O c6 15. Bd3 Kh8 16. Nh4 c5 17. Nxg6+ fxg6 18. Bxe4 cxd4 19. Nxd5 Nxd5 {1-0 (51) Jones,G (2677)-Aronian,L (2780) Douglas 2018}) 7... Ne4 {[%emt 0:00:55]} 8. cxd4 {[%emt 0:00:36]} Bb6 {[%emt 0:00:52]} 9. O-O {[%emt 0:05:01]} Bg4 {[%emt 0:02:46] LiveBook: 4 Games} 10. Be3 {[%emt 0:00:50]} O-O {[%emt 0:01:03]} 11. Nc3 {[%emt 0:02:21]} Qd7 {[%emt 0:06:15]} 12. Na4 {[%emt 0:17:31]} Ba5 $146 {[%emt 0:02:33]} ({Vorgänger:} 12... f6 13. exf6 Nxf6 14. h3 Bh5 15. Nxb6 axb6 {1-0 (63) Kun,G (2343)-Matrahalmi,T (2308) Hungary 2014}) 13. a3 {[%emt 0:02:12]} Qe6 {[%emt 0:11:30]} 14. Nc5 {[%emt 0:16:09]} Qc8 {[%emt 0:09:27]} 15. Nxe4 {[%emt 0:11:30]} (15. h3 $16 Bf5 16. Qb3) 15... dxe4 {[%emt 0:00:01]} 16. Ng5 {[%emt 0:01:32]} Bf5 {[%emt 0:01:30] [#]} (16... Bxe2 $11 {remains equal.} 17. Qxe2 Qf5) 17. f3 {[%emt 0:00:27]} ({White should try} 17. g4 $1 $16 {[%cal Rg4f5]} Bg6 18. e6) 17... Bb6 {[%emt 0:07:30]} 18. fxe4 {[%emt 0:00:58]} Bg6 {[%emt 0:01:30]} 19. Nf3 {[%emt 0:04:54]} Bxe4 {[%emt 0:00:57]} 20. Bd3 {[%emt 0:00:30]} Bxf3 {[%emt 0:03:24]} 21. Qxf3 {[%emt 0:00:22]} g6 {[%emt 0:03:27]} (21... Qe6 $1 $11) 22. Bc4 {[%emt 0:11:54]} Qd7 {[%emt 0:02:06]} (22... Qf5 $1 $14) 23. Rad1 {[%emt 0:04:28]} Nxd4 $2 {[%emt 0:10:43]} (23... Bxd4 {was called for.} 24. Kh1 Nxe5) 24. Qe4 {[%emt 0:02:46]} Rad8 {[%emt 0:04:36]} 25. e6 $1 {[%emt 0:04:38]} fxe6 {[%emt 0:01:05] [#]} 26. Rxd4 $1 {[%emt 0:00:47]} Qxd4 {[%emt 0:11:13]} (26... Rxf1+ $142 27. Kxf1 Qf7+ 28. Ke2 Re8) 27. Qxe6+ {[%emt 0:02:20]} Kh8 {[%emt 0:00:15]} 28. Rxf8+ {[%emt 0:00:13]} Rxf8 {[%emt 0:00:05]} 29. Bxd4+ {[%emt 0:00:07]} Bxd4+ {[%emt 0:00:16]} 30. Kh1 {[%emt 0:00:08]} Bf6 {[%emt 0:02:05]} 31. g4 {[%emt 0:00:24]} b6 {[%emt 0:01:04]} 32. Qd7 {[%emt 0:00:08]} Be5 {[%emt 0:00:07]} 33. b4 {[%emt 0:00:57]} Bd6 {[%emt 0:01:11]} 34. Kg2 $18 {[%emt 0:00:06]} Rf6 {[%emt 0:01:55]} 35. h4 {[%emt 0:00:18]} Rf8 {[%emt 0:03:11]} 36. h5 {[%emt 0:00:41]} Rf6 {[%emt 0:01:47]} 37. h6 {[%emt 0:00:17]} Bf8 {[%emt 0:00:45]} 38. Qd5 {[%emt 0:00:01]} 1-0

[Event "FIDE WCCC U10 2018"]
[Site "Santiago de Compostela"]
[Date "2018.11.08"]
[Round "4"]
[White "Ivanov, Svetlen"]
[Black "Ngo, Bach"]
[Result "1/2-1/2"]
[ECO "A07"]
[WhiteElo "1597"]
[BlackElo "1810"]
[Annotator "NA RC"]
[PlyCount "158"]
[EventDate "2018.11.04"]
[EventType "swiss"]
[EventCountry "ESP"]
[SourceTitle "playchess.com"]
[Source "ChessBase"]
[SourceQuality "1"]
[TimeControl "40/5400+30:1800+30"]

{[%evp 19,155,-13,16,9,21,-2,0,-12,32767,0,29,23,18,17,90,-2,125,141,97,-12,34,29,33,-112,-69,32767,-52,32767,32767,32767,-39,-79,32767,32767,-42,-26,-80,-29,10,-40,-26,32767,0,32767,0,32767,-102,32767,32767,32767,-130,-143,32767,-142,-135,32767,-524,-558,-285,-300,-641,-604,32767,32767,-927,-718,-814,32767,32767,32767,32767,32767,32767,32767,32767,32767,32767,32767,32767,32767,32767,32767,32767,32767,32767,32767,32767,-5314,-12838,-29971,32767,-29967,32767,32767,0,0,8,32767,32767,8,8,12,0,8,0,0,54,-118,-187,-193,-91,-80,-93,-95,-56,-78,-70,-87,0,0,0,0,0,-2,0,-400,32767,32767,32767,0,0,0,0,0,0,0,0,0]} 1. Nf3 {[%emt 0:00:00]} Nf6 {[%emt 0:00:00]} 2. g3 {[%emt 0:00:00]} d5 {[%emt 0:00:10]} 3. Bg2 {[%emt 0:00:00]} c6 {[%emt 0:00:17]} 4. O-O {[%emt 0:00:13]} Bg4 {[%emt 0:00:12]} 5. d4 {[%emt 0:00:34]} e6 {[%emt 0:00:06]} 6. Ne5 {[%emt 0:01:53]} Bf5 {[%emt 0:00:15]} 7. c4 {[%emt 0:00:47]} Nbd7 {[%emt 0:00:19]} 8. Nc3 {[%emt 0:01:08]} Be7 {[%emt 0:00:48]} 9. Bf4 {[%emt 0:02:02] D11: Slav Defence: 3 Nf3 sidelines and 3...Nf6 4 e3 Bg4} (9. Qb3 Qb6 10. Nxd7 Nxd7 11. e4 dxe4 12. Nxe4 Nf6 13. Nc5 Bxc5 14. dxc5 Qxb3 15. axb3 Be4 16. Bf4 Bxg2 17. Kxg2 {½-½ (63) Vastrukhin,O (2413)-Lysyj,I (2631) Sochi 2018}) 9... O-O {[%emt 0:00:37]} 10. Rc1 {[%emt 0:00:58]} Nb6 $146 {[%emt 0:07:12]} ({Predecessor:} 10... h6 11. h3 g5 12. Nxd7 Qxd7 13. Be5 Ne8 14. e4 dxe4 15. g4 Bg6 16. d5 exd5 17. cxd5 Rd8 {1-0 (17) Goczo,M (2080)-Javakhishvili,L (2110) Tallinn 1997}) 11. cxd5 {[%emt 0:07:29]} exd5 {[%emt 0:00:48]} 12. Qb3 {[%emt 0:08:32]} Bd6 {[%emt 0:03:14]} 13. Rfd1 {[%emt 0:06:44]} Qe7 {[%emt 0:02:04]} 14. a4 {[%emt 0:05:28]} Nh5 {[%emt 0:08:48]} 15. a5 {[%emt 0:10:48]} Nxf4 {[%emt 0:09:46]} 16. gxf4 {[%emt 0:00:14]} Bxe5 {[%emt 0:00:07]} (16... Nc8 $11) 17. fxe5 {[%emt 0:00:54]} (17. dxe5 $16 Nc4 18. e4) 17... Nc4 {[%emt 0:03:42]} ({Black should play} 17... Nc8 $1 $14) 18. e4 Bg4 {[%emt 0:02:44]} 19. f3 {[%emt 0:16:02]} (19. exd5 $16 Nxa5 20. Qa4) 19... Be6 {[%emt 0:00:32]} 20. exd5 {[%emt 0:01:29]} cxd5 {[%emt 0:00:17]} 21. Ra1 {[%emt 0:05:12]} (21. f4 $14 {was forced to keep a grip.}) 21... Qh4 {[%emt 0:04:38]} 22. Ne2 {[%emt 0:01:30]} Rac8 {[%emt 0:08:37]} 23. Rd3 {[%emt 0:02:41]} Bf5 {[%emt 0:07:09]} 24. Rc3 {[%emt 0:00:39] [#]} Qg5 {[%emt 0:00:59]} (24... Rc6 $1 $17 {[%cal Rc6h6]} 25. f4 Rh6) 25. Ng3 {[%emt 0:03:11]} Nd2 {[%emt 0:01:05]} 26. Qd1 {[%emt 0:00:38]} Rxc3 {[%emt 0:01:01]} 27. bxc3 {[%emt 0:00:03]} Qe3+ {[%emt 0:01:47]} 28. Kh1 {[%emt 0:00:03]} Bg6 {[%emt 0:02:06]} 29. Ra2 {[%emt 0:10:56]} ({Better is} 29. Qe1 $1 $11 Qd3 30. f4) 29... Nb1 {[%emt 0:04:01]} 30. Re2 {[%emt 0:02:28]} Qf4 {[%emt 0:01:01]} 31. Qe1 {[%emt 0:00:49]} Rc8 {[%emt 0:00:35]} 32. Re3 {[%emt 0:02:54]} Na3 {[%emt 0:00:42]} 33. Re2 {[%emt 0:00:39]} Nc2 34. Qd2 {[%emt 0:00:01]} Qxd2 {[%emt 0:00:52]} 35. Rxd2 Rxc3 {[%emt 0:00:26]} 36. f4 {[%emt 0:01:07]} Ne3 {[%emt 0:00:22]} 37. Rf2 Rc1+ {[%emt 0:00:34]} 38. Nf1 {[%emt 0:04:27]} Bd3 {[%emt 0:00:37]} 39. Kg1 {[%emt 0:00:20]} Nxf1 {[%emt 0:00:33]} 40. Bxf1 {[%emt 0:00:00]} Bxf1 {[%emt 0:00:00]} 41. Rxf1 {[%emt 0:00:08]} Rxf1+ {[%emt 0:05:45]} 42. Kxf1 {[%emt 0:00:12]} g6 {[%emt 0:00:59]} 43. Ke2 {[%emt 0:00:39]} Kf8 {[%emt 0:00:09]} 44. Kd3 {[%emt 0:00:10]} Ke7 {[%emt 0:00:05]} 45. Kc3 {[%emt 0:00:07]} Kd7 {[%emt 0:00:00]} 46. Kb4 {[%emt 0:01:44]} Kc6 {[%emt 0:00:08]} 47. Ka4 a6 {[%emt 0:00:11]} 48. Kb4 {[%emt 0:02:08]} b5 {[%emt 0:00:12]} 49. Kc3 Kd7 {[%emt 0:00:04]} 50. Kb4 {[%emt 0:00:46]} Ke6 {[%emt 0:00:31]} 51. Kc5 {[%emt 0:00:54]} h6 {[%emt 0:00:45]} 52. h3 g5 53. f5+ {[%emt 0:00:49]} Kxf5 {[%emt 0:00:36]} 54. Kxd5 h5 55. Kc6 {[%emt 0:00:27]} g4 {[%emt 0:01:22]} 56. hxg4+ {[%emt 0:00:09]} Kxg4 $2 (56... hxg4 $19 57. d5 b4) 57. d5 {[%emt 0:00:19]} h4 {[%emt 0:01:13]} 58. d6 {[%emt 0:00:24]} h3 {[%emt 0:00:04]} 59. d7 {[%emt 0:00:04]} h2 {[%emt 0:00:05]} 60. d8=Q {[%emt 0:00:08]} h1=Q+ {[%emt 0:00:20]} 61. Kb6 {[%emt 0:00:45]} Qf1 {[%emt 0:03:45]} 62. Qd4+ {[%emt 0:02:32]} Kf5 {[%emt 0:00:46]} 63. Qd5 $2 {[%emt 0:06:12]} (63. Kxa6 $14 Qc4 64. Qd7+ Kf4 65. Qxb5 Qc8+ 66. Qb7 Qc4+ 67. Ka7) 63... Qc4 {[%emt 0:00:45]} 64. Qf3+ {[%emt 0:06:33]} Kxe5 {[%emt 0:00:13]} 65. Qe3+ {[%emt 0:00:57]} Kd5 {[%emt 0:00:59]} 66. Qg5+ {[%emt 0:00:23]} Kd4 {[%emt 0:01:09]} 67. Qf4+ $1 {[%emt 0:01:06]} Kc3 {[%emt 0:00:09]} 68. Qc1+ {[%emt 0:00:24] [#]} (68. Qe3+ $11 Kc2 69. Kxa6) 68... Kb3 {[%emt 0:02:13]} (68... Kd3 $1 $17 69. Qb1+ Ke3 70. Qg1+ Kd3 71. Qd1+ Ke3 72. Qe1+ Kf3 73. Qd1+ Ke3 74. Qg1+ Kd3 75. Qg3+ Kc2 76. Kxa6 b4+ 77. Kb6 Qd4+ 78. Kb5 b3 79. Qg2+ Kc3 80. Qc6+ Kd3 81. Qf3+ Qe3 82. Qd5+ Kc2 83. Qc4+ Kd1) 69. Qb1+ $1 {[%emt 0:00:22]} Ka3 {[%emt 0:00:11]} 70. Qa1+ {[%emt 0:00:09]} Qa2 {[%emt 0:00:38]} 71. Qc3+ {[%emt 0:00:24]} Ka4 {[%emt 0:00:09]} 72. Kxa6 $2 {[%emt 0:01:36]} (72. Qd4+ $11 {and White has nothing to worry.} b4 73. Qd1+ Ka3 74. Kxa6 Qc4+ 75. Kb6) 72... b4 {[%emt 0:01:21]} 73. Qc6+ {[%emt 0:00:44]} Ka3 {[%emt 0:00:07]} 74. Qc5 {[%emt 0:08:03]} Qe6+ {[%emt 0:04:56]} 75. Kb7 {[%emt 0:03:05]} Qd7+ {[%emt 0:00:23]} 76. Kb6 {[%emt 0:01:26]} Qe6+ {[%emt 0:02:08]} 77. Kb7 {[%emt 0:00:07]} Qe4+ $11 {[%emt 0:00:07]} 78. Kb6 {[%emt 0:00:44]} Ka2 {[%emt 0:02:00]} 79. a6 {[%emt 0:00:53]} Qe6+ {[%emt 0:01:40]} 1/2-1/2

[Event "FIDE WCCC U10 2018"]
[Site "Santiago de Compostela"]
[Date "2018.11.08"]
[Round "4"]
[White "Lomtadze, Davit"]
[Black "Bialiauski, Artsiom"]
[Result "1/2-1/2"]
[ECO "C41"]
[WhiteElo "1595"]
[BlackElo "1791"]
[Annotator "NA RC"]
[PlyCount "102"]
[EventDate "2018.11.04"]
[EventType "swiss"]
[EventCountry "ESP"]
[SourceTitle "playchess.com"]
[Source "ChessBase"]
[SourceQuality "1"]
[TimeControl "40/5400+30:1800+30"]

1. e4 {[%emt 0:00:00]} e5 {[%emt 0:00:00]} 2. Nf3 {[%emt 0:00:00]} d6 {[%emt 0:01:00]} 3. d4 {[%emt 0:00:00]} exd4 {[%emt 0:01:21]} 4. Nxd4 {[%emt 0:00:00]} Nf6 {[%emt 0:02:38]} 5. Nc3 {[%emt 0:00:13]} Be7 {[%emt 0:01:20]} 6. Bc4 {[%emt 0:00:33]} O-O {[%emt 0:01:02]} 7. O-O {[%emt 0:00:42]} Re8 {[%emt 0:02:59]} 8. f3 {[%emt 0:08:46]} a6 {[%emt 0:03:26]} 9. a4 {[%emt 0:00:14]} c5 {[%emt 0:00:03]} 10. Nde2 {[%emt 0:06:13]} Nc6 {[%emt 0:07:59]} 11. Be3 {[%emt 0:06:55]} Be6 {[%emt 0:02:09]} 12. Bd5 {[%emt 0:15:56]} Qc7 {[%emt 0:07:25]} 13. Nf4 {[%emt 0:05:54]} Bf8 {[%emt 0:03:36]} 14. Qd2 {[%emt 0:05:33]} Rad8 {[%emt 0:02:38]} 15. Rad1 {[%emt 0:06:38]} g6 {[%emt 0:07:04]} 16. Qf2 {[%emt 0:04:47]} Bg7 {[%emt 0:02:33]} 17. Rd2 {[%emt 0:06:53]} Ne5 {[%emt 0:05:10]} 18. Rfd1 {[%emt 0:05:59]} g5 {[%emt 0:13:26]} 19. Nxe6 {[%emt 0:10:25]} fxe6 {[%emt 0:00:10]} 20. Ba2 {[%emt 0:00:19]} h6 {[%emt 0:04:32]} 21. h4 {[%emt 0:06:58]} Nf7 {[%emt 0:00:26]} 22. hxg5 {[%emt 0:02:11]} hxg5 {[%emt 0:00:08]} 23. Qg3 {[%emt 0:00:29]} c4 {[%emt 0:03:20]} 24. Qf2 {[%emt 0:04:07]} Qc6 {[%emt 0:01:17]} 25. Bd4 {[%emt 0:01:44]} Rf8 {[%emt 0:03:26]} 26. Qe2 {[%emt 0:00:29]} b5 {[%emt 0:00:56]} 27. axb5 axb5 {[%emt 0:00:06]} 28. Be3 {[%emt 0:01:28]} Nd7 {[%emt 0:05:41]} 29. Nxb5 {[%emt 0:00:32]} Qxb5 {[%emt 0:00:10]} 30. Bxc4 {[%emt 0:00:06]} Qxb2 {[%emt 0:04:18]} 31. Bxe6 {[%emt 0:00:09]} Nf6 {[%emt 0:08:11]} 32. Bxg5 {[%emt 0:00:59]} Qe5 {[%emt 0:00:24]} 33. Bxf6 {[%emt 0:00:42]} Bxf6 {[%emt 0:00:45]} 34. Bxf7+ {[%emt 0:00:14]} Rxf7 {[%emt 0:00:47]} 35. Rd5 {[%emt 0:00:18]} Qe6 {[%emt 0:05:02]} 36. e5 {[%emt 0:00:48]} Rfd7 {[%emt 0:01:55]} 37. f4 {[%emt 0:00:45]} dxe5 {[%emt 0:00:35]} 38. Rxd7 {[%emt 0:00:11]} Rxd7 {[%emt 0:00:08]} 39. Rxd7 {[%emt 0:00:12]} Qxd7 {[%emt 0:00:07]} 40. fxe5 {[%emt 0:00:00]} Qd4+ {[%emt 0:00:00]} 41. Kf1 {[%emt 0:06:01]} Bxe5 {[%emt 0:01:21]} 42. Qd3 {[%emt 0:03:11]} Qf4+ {[%emt 0:01:42]} 43. Ke2 {[%emt 0:00:39]} Bd4 {[%emt 0:01:54]} 44. Qf3 {[%emt 0:01:30]} Qe5+ {[%emt 0:00:20]} 45. Kd3 {[%emt 0:00:47]} Bc5 {[%emt 0:00:54]} 46. Qa8+ {[%emt 0:01:47]} Kf7 {[%emt 0:00:27]} 47. Qb7+ {[%emt 0:00:38]} Kf6 {[%emt 0:00:09]} 48. Qc6+ {[%emt 0:00:37]} Kg5 {[%emt 0:00:42]} 49. Qe4 {[%emt 0:00:16]} Qc7 {[%emt 0:00:41]} 50. Qd5+ {[%emt 0:01:25]} Kg4 {[%emt 0:01:21]} 51. Qf3+ {[%emt 0:00:43]} Kg5 {[%emt 0:00:48]} 1/2-1/2

[Event "FIDE WCCC U10 2018"]
[Site "Santiago de Compostela"]
[Date "2018.11.08"]
[Round "4"]
[White "Tripulskiy, Mark"]
[Black "Todev, Simeon"]
[Result "1/2-1/2"]
[ECO "A02"]
[WhiteElo "1151"]
[BlackElo "1767"]
[Annotator "NA RC"]
[PlyCount "117"]
[EventDate "2018.11.04"]
[EventType "swiss"]
[EventCountry "ESP"]
[SourceTitle "playchess.com"]
[Source "ChessBase"]
[SourceQuality "1"]
[TimeControl "40/5400+30:1800+30"]

1. f4 {[%emt 0:00:00]} e5 {[%emt 0:00:00]} 2. fxe5 {[%emt 0:00:00]} d6 {[%emt 0:00:00]} 3. exd6 {[%emt 0:00:00]} Bxd6 {[%emt 0:00:00]} 4. Nf3 {[%emt 0:00:00]} g5 {[%emt 0:00:24]} 5. g3 {[%emt 0:00:38]} h5 {[%emt 0:00:34]} 6. d4 {[%emt 0:01:10]} g4 {[%emt 0:00:26]} 7. Nh4 {[%emt 0:01:53]} Be7 {[%emt 0:01:16]} 8. Qd3 {[%emt 0:21:13]} Nc6 {[%emt 0:05:49]} 9. c3 {[%emt 0:02:40]} Bxh4 {[%emt 0:02:02]} 10. gxh4 {[%emt 0:03:08]} Qxh4+ {[%emt 0:00:18]} 11. Qg3 {[%emt 0:00:01]} Qxg3+ {[%emt 0:00:17]} 12. hxg3 {[%emt 0:00:10]} Nf6 {[%emt 0:01:44]} 13. Bg2 {[%emt 0:01:06]} Ne7 {[%emt 0:24:40]} 14. Bg5 {[%emt 0:03:43]} Nd7 {[%emt 0:03:00]} 15. e4 {[%emt 0:10:03]} f6 {[%emt 0:01:03]} 16. Be3 {[%emt 0:03:10]} Ng6 {[%emt 0:01:35]} 17. Nd2 {[%emt 0:11:47]} Nb6 {[%emt 0:01:56]} 18. O-O-O {[%emt 0:02:07]} Bd7 {[%emt 0:02:19]} 19. Rdf1 {[%emt 0:02:33]} Ke7 {[%emt 0:02:09]} 20. e5 {[%emt 0:06:25]} f5 {[%emt 0:02:48]} 21. Bg5+ {[%emt 0:03:20]} Kf7 {[%emt 0:01:35]} 22. Be4 {[%emt 0:02:33]} Ne7 {[%emt 0:02:53]} 23. Bxe7 {[%emt 0:05:11]} Kxe7 {[%emt 0:00:43]} 24. Bxf5 {[%emt 0:00:34]} Raf8 {[%emt 0:00:31]} 25. Bxd7 {[%emt 0:00:43]} Nxd7 {[%emt 0:00:36]} 26. Nc4 {[%emt 0:03:58]} Rxf1+ {[%emt 0:02:23]} 27. Rxf1 {[%emt 0:00:04]} h4 {[%emt 0:00:26]} 28. Ne3 {[%emt 0:01:57]} hxg3 {[%emt 0:00:57]} 29. Nf5+ {[%emt 0:00:05]} Kf7 {[%emt 0:00:49]} 30. Nxg3+ {[%emt 0:00:51]} Kg6 {[%emt 0:00:07]} 31. Ne4 {[%emt 0:02:39]} Rf8 {[%emt 0:03:08]} 32. Rxf8 {[%emt 0:04:48]} Nxf8 {[%emt 0:00:16]} 33. Kd2 {[%emt 0:00:23]} Kf5 {[%emt 0:00:32]} 34. Ke3 {[%emt 0:00:06]} Nd7 {[%emt 0:01:27]} 35. Ng3+ {[%emt 0:00:29]} Ke6 {[%emt 0:02:48]} 36. Ke4 {[%emt 0:01:24]} Nb6 {[%emt 0:01:03]} 37. Nf5 {[%emt 0:03:38]} c6 {[%emt 0:01:58]} 38. Ne3 {[%emt 0:01:59]} g3 {[%emt 0:02:29]} 39. Kf3 {[%emt 0:00:37]} Na4 {[%emt 0:00:45]} 40. Nc4 {[%emt 0:00:00]} b5 {[%emt 0:00:00]} 41. Na5 {[%emt 0:12:08]} Nxb2 {[%emt 0:04:53]} 42. Nxc6 {[%emt 0:01:19]} Nd1 {[%emt 0:01:48]} 43. Nxa7 {[%emt 0:07:50]} Nxc3 {[%emt 0:00:17]} 44. Kxg3 {[%emt 0:05:48]} b4 {[%emt 0:02:31]} 45. Kf3 {[%emt 0:07:23]} Kd5 {[%emt 0:00:42]} 46. Nc8 {[%emt 0:00:54]} Nxa2 {[%emt 0:00:54]} 47. Nb6+ {[%emt 0:00:22]} Kc6 {[%emt 0:17:23]} 48. e6 {[%emt 0:00:37]} Kd6 {[%emt 0:00:57]} 49. d5 {[%emt 0:00:19]} Nc3 {[%emt 0:02:30]} 50. Nc4+ {[%emt 0:00:14]} Ke7 {[%emt 0:00:18]} 51. Ne3 {[%emt 0:00:49]} b3 {[%emt 0:02:01]} 52. Nf5+ {[%emt 0:00:33]} Kd8 {[%emt 0:02:21]} 53. e7+ {[%emt 0:00:34]} Kd7 {[%emt 0:00:48]} 54. e8=Q+ Kxe8 {[%emt 0:00:17]} 55. Nd6+ {[%emt 0:00:37]} Kd7 {[%emt 0:00:13]} 56. Nc4 {[%emt 0:00:07]} Nxd5 {[%emt 0:01:12]} 57. Ke4 {[%emt 0:00:41]} Kc6 {[%emt 0:00:08]} 58. Na5+ {[%emt 0:00:04]} Kb5 {[%emt 0:00:08]} 59. Nxb3 {[%emt 0:00:07]} 1/2-1/2